Workbook

Sheet Sheet1
A1: Vitmix test anaerobic growth experiment
A2: Subject: | C2: anaerobic growth experiment vitamin mix test
C3: DeBont+Gluconic acid+Km
A4: Inoculation date | C4: 2017-12-11 | D4: Started with OD600 of 0.10: no oxygen present at time of inoculation
A5: Inoculation OD600 | C5: 0.1
A6: Inoculated | C6: blank | D6: BW25113 2213F - | E6: KT2440 2213F - | F6: KT2440 2213F A p+0 | G6: KT2440 2213F A p+3 | H6: KT2440 2213F APR p+0 | I6: KT2440 2213F APR p+3
C7: 0 | D7: 1 | E7: 4 | F7: 8 | G7: 11 | H7: 30 | J7: Average | K7: 0 | L7: 1 | M7: 4 | N7: 8 | O7: 11 | P7: 30
A8: Blank | B8: 1 | C8: 0 | D8: 0 | E8: 0.01 | F8: 0 | G8: 0 | H8: 0.04 | J8: Blank | K8: =AVERAGE(C8:C9) -> 0 | L8: =AVERAGE(D8:D9) -> 0 | M8: 0.005 | N8: 0 | O8: =AVERAGE(G8:G9) -> 0.02 | P8: =AVERAGE(H8:H9) -> 0.035
B9: 2 | C9: 0 | D9: 0 | E9: 0 | F9: 0 | G9: 0.04 | H9: 0.03 | J9: BW25113 2213F - | K9: =AVERAGE(C10:C12) -> 0.1043333333 | L9: =AVERAGE(D10:D12) -> 0.23 | M9: 0.1933333333 | N9: 0.1833333333 | O9: 0.24 | P9: 0.39
A10: BW25113 2213F - | B10: 1 | C10: 0.106 | D10: 0.27 | E10: 0.13 | F10: 0.15 | G10: 0.23 | H10: 0.38 | J10: KT2440 2213F - | K10: =AVERAGE(C13:C15) -> 0.101 | L10: =AVERAGE(D13:D15) -> 0.15 | M10: 0.1233333333 | N10: 0.2066666667 | O10: 0.15 | P10: 0.1466666667
B11: 2 | C11: 0.105 | D11: 0.23 | E11: 0.26 | F11: 0.24 | G11: 0.3 | H11: 0.37 | J11: KT2440 2213F A p+0 | K11: =AVERAGE(C16:C18) -> 0.104 | L11: =AVERAGE(D16:D18) -> 0.2133333333 | M11: 0.1066666667 | N11: 0.3133333333 | O11: 0.1433333333 | P11: 0.17
B12: 3 | C12: 0.102 | D12: 0.19 | E12: 0.19 | F12: 0.16 | G12: 0.19 | H12: 0.42 | J12: KT2440 2213F A p+3 | K12: =AVERAGE(C19:C21) -> 0.111 | L12: =AVERAGE(D19:D21) -> 0.2733333333 | M12: 0.1766666667 | N12: 0.1133333333 | O12: =AVERAGE(G19:G21) -> 0.1266666667 | P12: =AVERAGE(H19:H21) -> 0.1266666667
A13: KT2440 2213F - | B13: 1 | C13: 0.102 | D13: 0.23 | E13: 0.15 | F13: 0.13 | G13: 0.07 | H13: 0.14 | J13: KT2440 2213F APR p+0 | K13: =AVERAGE(C22:C24) -> 0.104 | L13: =AVERAGE(D22:D24) -> 0.2266666667 | M13: 0.1533333333 | N13: 0.25 | O13: 0.09666666667 | P13: 0.15
B14: 2 | C14: 0.099 | D14: 0.03 | E14: 0.08 | F14: 0.34 | G14: 0.3 | H14: 0.16 | J14: KT2440 2213F APR p+3 | K14: =AVERAGE(C25:C27) -> 0.109 | L14: =AVERAGE(D25:D27) -> 0.25 | M14: 0.1533333333 | N14: 0.25 | O14: 0.07333333333 | P14: 0.1233333333
B15: 3 | C15: 0.102 | D15: 0.19 | E15: 0.14 | F15: 0.15 | G15: 0.08 | H15: 0.14
A16: KT2440 2213F A p+0 | B16: 1 | C16: 0.102 | D16: 0.18 | E16: 0.15 | F16: 0.19 | G16: 0.28 | H16: 0.23 | J16: stdev | K16: 0 | L16: 1 | M16: 4 | N16: 8 | O16: 11 | P16: 30
B17: 2 | C17: 0.108 | D17: 0.27 | E17: 0.09 | F17: 0.62 | G17: 0.05 | H17: 0.12 | J17: Blank | K17: =STDEV(C8:C9) -> 0 | L17: =STDEV(D8:D9) -> 0 | M17: 0.007071067812 | N17: 0 | O17: 0.02828427125 | P17: 0.007071067812
B18: 3 | C18: 0.102 | D18: 0.19 | E18: 0.08 | F18: 0.13 | G18: 0.1 | H18: 0.16 | J18: BW25113 2213F - | K18: =STDEV(C10:C12) -> 0.002081665999 | L18: =STDEV(D10:D12) -> 0.04 | M18: 0.06506407099 | N18: 0.04932882862 | O18: 0.05567764363 | P18: 0.02645751311
A19: KT2440 2213F A p+3 | B19: 1 | C19: 0.108 | D19: 0.26 | E19: 0.18 | F19: 0.14 | G19: 0.05 | H19: 0.1 | J19: KT2440 2213F - | K19: =STDEV(C13:C15) -> 0.001732050808 | L19: =STDEV(D13:D15) -> 0.1058300524 | M19: 0.03785938897 | N19: 0.1159022577 | O19: 0.13 | P19: 0.01154700538
B20: 2 | C20: 0.114 | D20: 0.3 | E20: 0.22 | F20: 0.08 | G20: 0.25 | H20: 0.13 | J20: KT2440 2213F A p+0 | K20: =STDEV(C16:C18) -> 0.003464101615 | L20: =STDEV(D16:D18) -> 0.04932882862 | M20: 0.03785938897 | N20: 0.2672701505 | O20: 0.1209683154 | P20: 0.05567764363
B21: 3 | C21: 0.111 | D21: 0.26 | E21: 0.13 | F21: 0.12 | G21: 0.08 | H21: 0.15 | J21: KT2440 2213F A p+3 | K21: =STDEV(C19:C21) -> 0.003 | L21: =STDEV(D19:D21) -> 0.02309401077 | M21: 0.04509249753 | N21: 0.03055050463 | O21: 0.1078579312 | P21: 0.02516611478
A22: KT2440 2213F APR p+0 | B22: 1 | C22: 0.105 | D22: 0.21 | E22: 0.12 | F22: 0.41 | G22: 0.14 | H22: 0.13 | J22: KT2440 2213F APR p+0 | K22: =STDEV(C22:C24) -> 0.001732050808 | L22: =STDEV(D22:D24) -> 0.01527525232 | M22: 0.02886751346 | N22: 0.1417744688 | O22: 0.03785938897 | P22: 0.02
B23: 2 | C23: 0.102 | D23: 0.23 | E23: 0.17 | F23: 0.2 | G23: 0.07 | H23: 0.17 | J23: KT2440 2213F APR p+3 | K23: =STDEV(C25:C27) -> 0.004582575695 | L23: =STDEV(D25:D27) -> 0.03464101615 | M23: 0.01527525232 | N23: 0.04358898944 | O23: 0.01154700538 | P23: 0.02516611478
B24: 3 | C24: 0.105 | D24: 0.24 | E24: 0.17 | F24: 0.14 | G24: 0.08 | H24: 0.15
A25: KT2440 2213F APR p+3 | B25: 1 | C25: 0.108 | D25: 0.23 | E25: 0.15 | F25: 0.3 | G25: 0.08 | H25: 0.12 | J25: Average corrected for blank | K25: 0 | L25: 1 | M25: 4 | N25: 8 | O25: 11 | P25: 30
B26: 2 | C26: 0.105 | D26: 0.29 | E26: 0.17 | F26: 0.23 | G26: 0.06 | H26: 0.1 | J26: BW25113 pS2213 - | K26: =K9-$K$8 -> 0.1043333333 | L26: =L9-$L$8 -> 0.23 | M26: =M9-$M$8 -> 0.1883333333 | N26: =N9-$N$8 -> 0.1833333333 | O26: =O9-$O$8 -> 0.22 | P26: =P9-$O$8 -> 0.37
B27: 3 | C27: 0.114 | D27: 0.23 | E27: 0.14 | F27: 0.22 | G27: 0.08 | H27: 0.15 | J27: KT2440 pS2213 - | K27: =K10-$K$8 -> 0.101 | L27: =L10-$L$8 -> 0.15 | M27: =M10-$M$8 -> 0.1183333333 | N27: =N10-$N$8 -> 0.2066666667 | O27: =O10-$O$8 -> 0.13 | P27: 0.1266666667
J28: KT2440 pS2213 ackA p+0 | K28: 0.104 | L28: 0.2133333333 | M28: 0.1016666667 | N28: 0.3133333333 | O28: 0.1233333333 | P28: 0.15
J29: KT2440 pS2213 ackA p+3 | K29: 0.111 | L29: 0.2733333333 | M29: 0.1716666667 | N29: 0.1133333333 | O29: 0.1066666667 | P29: 0.1066666667
J30: KT2440 pS2213 ackA-(pyrK-pyrD B)-(nrdD-nrdG) p+0 | K30: 0.104 | L30: 0.2266666667 | M30: 0.1483333333 | N30: 0.25 | O30: 0.07666666667 | P30: 0.13
J31: KT2440 2213F ackA-(pyrK-pyrD B)-(nrdD-nrdG) p+3 | K31: 0.109 | L31: 0.25 | M31: 0.1483333333 | N31: 0.25 | O31: 0.05333333333 | P31: 0.1033333333
